fUSD/lending_fUSD_20240215
["ID","MTS","AMOUNT","RATE_DAILY","PERIOD"]
[314087553,1707967838649,-250.0,0.00033892,111]
[314087554,1707967838662,-165.59,0.00034346,2]
[314087555,1707967838673,-181.95,0.00034521,2]
[314087556,1707967838683,-152.95,0.000347,2]
[314087557,1707967838692,-152.95,0.000347,2]
[314087558,1707967838702,-152.95,0.000347,2]
[314087559,1707967838711,-152.95,0.000347,2]
[314087560,1707967838721,-152.95,0.000347,2]
[314087561,1707967838730,-152.95,0.000347,2]
[314087562,1707967838739,-152.95,0.000347,2]
[314087563,1707967838749,-152.95,0.000347,2]
[314087565,1707967838759,-152.95,0.000347,2]
[314087567,1707967838768,-152.95,0.000347,2]
[314087568,1707967838777,-152.95,0.000347,2]
[314087570,1707967838787,-156.61079758,0.00034807,2]
[314087571,1707967838796,-1000.0,0.00034833,2]
[314087572,1707967838806,-180.12,0.00034999,10]
[314087573,1707967838815,-288.8264733,0.00035009,3]
[314087575,1707967838825,-195.65,0.0003501,120]
[314087576,1707967838835,-150.36398041,0.0003503,2]
[314087577,1707967838843,-1580.04093358,0.0003505,3]
[314087578,1707967838853,-876.7555,0.00035122,2]
[314087579,1707967838862,-239.09,0.00035142,2]
[314087580,1707967838871,-1042.56882502,0.00035149,2]
[314087581,1707967838880,-250.0,0.00035169,2]
[314087582,1707967838890,-150.0,0.00035203,2]
[314087583,1707967838899,-55611.41,0.00035222,2]
[314087584,1707967838908,-250.0,0.00035249,2]
[314087585,1707967838918,-161.96,0.00035568,2]
[314087586,1707967838928,-161.96,0.00035665,2]
[314087587,1707967838937,-203.0,0.00035708,6]
[314087588,1707967838946,-558.79,0.00035711,2]
[314087589,1707967838955,-161.96,0.00035763,2]
[314087590,1707967838964,-161.96,0.00035861,2]
[314087591,1707967838974,-161.96,0.00035958,2]
[314087592,1707967838983,-1042.56882495,0.0003601,2]
[314087593,1707967838993,-161.96,0.00036056,2]
[314087594,1707967839002,-161.96,0.00036153,2]
[314087595,1707967839011,-290.0,0.0003623,2]
[314087596,1707967839021,-150.46,0.0003624,2]
[314087597,1707967839030,-161.96,0.00036251,2]
[314087598,1707967839039,-161.96,0.00036348,2]
[314087599,1707967839048,-161.96,0.00036446,2]
[314087600,1707967839057,-152.95,0.000365,3]
[314087601,1707967839066,-152.95,0.000365,3]
[314087602,1707967839075,-152.95,0.000365,3]
[314087603,1707967839084,-152.95,0.000365,3]
[314087604,1707967839093,-152.95,0.000365,3]
[314087605,1707967839102,-152.95,0.000365,3]
[314087606,1707967839112,-152.95,0.000365,3]
[314087607,1707967839120,-152.95,0.000365,3]
[314087608,1707967839130,-152.95,0.000365,3]
[314087609,1707967839139,-152.95,0.000365,3]
[314087610,1707967839149,-152.95,0.000365,3]
[314087611,1707967839158,-161.96,0.00036543,2]
[314087612,1707967839168,-161.96,0.00036641,2]
[314087613,1707967839177,-161.96,0.00036739,2]
[314087614,1707967839186,-239.09,0.00036786,2]
[314087615,1707967839195,-161.96,0.00036836,2]
[314087616,1707967839204,-1042.56882495,0.00036871,2]
[314087617,1707967839213,-3000.0,0.000369,29]
[314087618,1707967839222,-3000.0,0.0003691,29]
[314087619,1707967839231,-3560.327937,0.0003692,29]
[314087620,1707967839241,-191.24,0.00036933,2]
[314087621,1707967839250,-161.96,0.00036934,2]
[314087622,1707967839259,-161.96,0.00037031,2]
[314087623,1707967839268,-181.95,0.00037075,2]
[314087624,1707967839277,-168.77,0.00037084,2]
[314087625,1707967839286,-161.96,0.00037129,2]
[314087626,1707967839295,-161.96,0.00037226,2]
[314087627,1707967839304,-161.96,0.00037324,2]
[314087628,1707967839313,-156.61079758,0.00037353,2]
[314087629,1707967839322,-161.96,0.00037422,2]
[314087630,1707967839332,-203.0,0.00037576,10]
[314087631,1707967839341,-1438.59594525,0.000377,4]
[314087632,1707967839351,-558.79,0.00037975,2]
[314087633,1707967839360,-166.74,0.00038038,2]
[314087634,1707967839369,-152.95,0.000382,3]
[314087635,1707967839379,-152.95,0.000382,3]
[314087636,1707967839388,-152.95,0.000382,3]
[314087637,1707967839397,-152.95,0.000382,3]
[314087638,1707967839406,-152.95,0.000382,3]
[314087639,1707967839417,-152.95,0.000382,3]
[314087640,1707967839426,-152.95,0.000382,3]
[314087641,1707967839435,-152.95,0.000382,3]
[314087642,1707967839445,-152.95,0.000382,3]
[314087643,1707967839454,-152.95,0.000382,3]
[314087644,1707967839463,-152.95,0.000382,3]
[314087645,1707967839473,-2500.0,0.00038246,2]
[314087646,1707967839482,-786.8335,0.00038256,2]
[314087647,1707967839491,-755.94194983,0.00038256,8]
[314087648,1707967839500,-156.02,0.00038316,2]
[314087649,1707967839509,-1814.95,0.00038356,5]
[314087650,1707967839518,-1811.74,0.00038356,5]
[314087651,1707967839530,-1782.44,0.00038356,5]
[314087652,1707967839539,-1839.2,0.00038356,5]
[314087653,1707967839548,-1777.58,0.00038356,5]
[314087654,1707967839557,-1786.13,0.00038356,5]
[314087655,1707967839566,-1837.71,0.00038356,5]
[314087656,1707967839575,-1832.52,0.00038356,5]
[314087657,1707967839585,-1833.59,0.00038356,5]
[314087658,1707967839594,-1786.5,0.00038356,5]
[314087659,1707967839603,-1836.46,0.00038356,5]
[314087660,1707967839613,-1831.72,0.00038356,5]
[314087661,1707967839622,-502.14347219,0.00038356,7]
[314087662,1707967839631,-510.15589135,0.00038356,15]
[314087663,1707967839640,-506.35855649,0.00038356,7]
[314087664,1707967839649,-503.72425896,0.00038356,7]
[314087665,1707967839659,-500.0,0.00038356,7]
[314087666,1707967839671,-522.8094199,0.00038356,7]
[314087667,1707967839680,-527.41184123,0.00038356,7]
[314087668,1707967839689,-530.26037459,0.00038356,7]
[314087669,1707967839698,-552.25672863,0.00038356,7]
[314087670,1707967839708,-527.85529409,0.00038356,7]
[314087671,1707967839717,-503.144189,0.00038356,7]
[314087672,1707967839726,-560.99168132,0.00038356,7]
[314087673,1707967839735,-500.0,0.00038356,7]
[314087674,1707967839746,-500.0,0.00038356,7]
[314087675,1707967839755,-519.90125621,0.00038356,7]
[314087676,1707967839763,-500.70934394,0.00038356,7]
[314087677,1707967839773,-532.41733172,0.00038356,7]
[314087678,1707967839783,-514.40487355,0.00038356,7]
[314087679,1707967839792,-506.70872341,0.00038356,7]
[314087680,1707967839802,-507.98715626,0.00038356,7]
[314087681,1707967839812,-507.0978988,0.00038356,7]
[314087682,1707967839821,-503.24589156,0.00038356,7]
[314087683,1707967839830,-500.0,0.00038356,7]
[314087684,1707967839840,-510.62743783,0.00038356,7]
[314087685,1707967839850,-519.85982458,0.00038356,7]
[314087686,1707967839981,-517.02098907,0.00038356,7]
[314087687,1707967839991,-505.88300086,0.00038356,7]
[314087688,1707967840001,-507.57634302,0.00038356,7]
[314087689,1707967840010,-512.22557376,0.00038356,7]
[314087690,1707967840019,-510.97541353,0.00038356,2]
[314087691,1707967840028,-515.99622908,0.00038356,7]
[314087692,1707967840038,-532.08885621,0.00038356,7]
[314087693,1707967840047,-526.09034887,0.00038356,7]
[314087694,1707967840056,-500.0,0.00038356,7]
[314087695,1707967840066,-513.07399887,0.00038356,7]
[314087696,1707967840075,-504.32479816,0.00038356,7]
[314087697,1707967840084,-506.87181123,0.00038356,7]
[314087698,1707967840093,-513.54020715,0.00038356,7]
[314087699,1707967840102,-517.58200189,0.00038356,7]
[314087700,1707967840111,-525.38132364,0.00038356,7]
[314087701,1707967840121,-500.0,0.00038356,7]
[314087702,1707967840131,-500.0,0.00038356,7]
[314087703,1707967840141,-500.0,0.00038356,7]
[314087704,1707967840150,-526.7044343,0.00038356,7]
[314087705,1707967840159,-504.02924313,0.00038356,7]
[314087706,1707967840169,-500.0,0.00038356,7]
[314087707,1707967840179,-500.0,0.00038356,7]
[314087708,1707967840188,-500.0,0.00038356,7]
[314087709,1707967840197,-500.0,0.00038356,7]
[314087710,1707967840206,-500.0,0.00038356,7]
[314087711,1707967840216,-500.0,0.00038356,7]
[314087712,1707967840225,-500.93866923,0.00038356,7]
[314087713,1707967840234,-500.0,0.00038356,7]
[314087714,1707967840244,-500.0,0.00038356,7]
[314087715,1707967840253,-509.59231474,0.00038356,7]
[314087716,1707967840263,-500.0,0.00038356,7]
[314087717,1707967840272,-500.0,0.00038356,7]
[314087718,1707967840282,-211.69476172,0.00038356,7]
[314087719,1707967840292,-500.0,0.00038356,7]
[314087720,1707967840302,-500.0,0.00038356,7]
[314087721,1707967840311,-500.0,0.00038356,7]
[314087722,1707967840320,-517.77898638,0.00038356,7]
[314087723,1707967840329,-511.45818085,0.00038356,7]
[314087724,1707967840338,-500.2639986,0.00038356,7]
[314087725,1707967840348,-547.18185331,0.00038356,7]
[314087726,1707967840357,-388.68033329,0.00038356,7]
[314087727,1707967840366,-500.0,0.00038356,7]
[314087728,1707967840376,-257.59444194,0.00038356,7]
[314087729,1707967840386,-523.0328962,0.00038356,7]
[314087730,1707967840395,-501.70064652,0.00038356,7]
[314087731,1707967840404,-517.13296712,0.00038356,7]
[314087732,1707967840415,-521.4223298,0.00038356,7]
[314087733,1707967840425,-501.88224419,0.00038356,7]
[314087734,1707967840435,-537.8573434,0.00038356,7]
[314087735,1707967840444,-500.27860851,0.00038356,7]
[314087736,1707967840453,-500.0,0.00038356,7]
[314087737,1707967840463,-501.87084758,0.00038356,7]
[314087738,1707967840483,-500.0,0.00038356,7]
[314087739,1707967840495,-502.79489974,0.00038356,7]
[314087740,1707967840506,-500.0,0.00038356,7]
[314087741,1707967840515,-503.39908127,0.00038356,7]
[314087742,1707967840526,-500.0,0.00038356,7]
[314087743,1707967840535,-500.0,0.00038356,7]
[314087744,1707967840546,-500.0,0.00038356,7]
[314087745,1707967840556,-500.0,0.00038356,7]
[314087746,1707967840566,-500.0,0.00038356,7]
[314087747,1707967840576,-500.0,0.00038356,7]
[314087748,1707967840586,-501.88680744,0.00038356,7]
[314087749,1707967840596,-500.0,0.00038356,7]
[314087750,1707967840606,-1000.0,0.00038356,7]
[314087751,1707967840616,-500.0,0.00038356,7]
[314087752,1707967840626,-500.0,0.00038356,7]
[314087753,1707967840636,-500.0,0.00038356,7]
[314087754,1707967840646,-500.0,0.00038356,7]
[314087755,1707967840656,-500.0,0.00038356,7]
[314087756,1707967840667,-500.0,0.00038356,7]
[314087757,1707967840678,-500.0,0.00038356,7]
[314087758,1707967840688,-500.0,0.00038356,7]
[314087759,1707967840698,-500.0,0.00038356,7]
[314087760,1707967840709,-500.0,0.00038356,7]
[314087761,1707967840718,-500.0,0.00038356,7]
[314087762,1707967840728,-500.0,0.00038356,7]
[314087763,1707967840738,-500.0,0.00038356,7]
[314087764,1707967840749,-500.0,0.00038356,7]
[314087765,1707967840759,-500.0,0.00038356,7]
[314087766,1707967840768,-500.0,0.00038356,7]
[314087767,1707967840778,-500.0,0.00038356,7]
[314087768,1707967840788,-500.0,0.00038356,7]
[314087769,1707967840797,-510.58611354,0.00038356,7]
[314087770,1707967840807,-500.0,0.00038356,7]
[314087771,1707967840816,-500.0,0.00038356,2]
[314087772,1707967840825,-645.54,0.00038356,7]
[314087773,1707967840835,-533.45484258,0.00038356,7]
[314087774,1707967840845,-244.14606172,0.00038356,7]
[314087775,1707967840854,-500.0,0.00038356,7]
[314087776,1707967840864,-522.06728,0.00038356,7]
[314087777,1707967840874,-544.22145492,0.00038356,7]
[314087778,1707967840883,-500.0,0.00038356,7]
[314087779,1707967840893,-502.87056085,0.00038356,7]
[314087780,1707967840903,-500.0,0.00038356,7]
[314087781,1707967840917,-500.0,0.00038356,7]
[314087782,1707967840927,-500.0,0.00038356,7]
[314087783,1707967840936,-502.6990058,0.00038356,7]
[314087784,1707967840946,-500.0,0.00038356,7]
[314087785,1707967840955,-500.0,0.00038356,7]
[314087786,1707967840965,-500.0,0.00038356,7]
[314087787,1707967840974,-500.0,0.00038356,7]
[314087788,1707967840983,-500.0,0.00038356,7]
[314087789,1707967840992,-500.0,0.00038356,7]
[314087790,1707967841003,-500.0,0.00038356,7]
[314087791,1707967841012,-500.0,0.00038356,7]
[314087792,1707967841022,-500.0,0.00038356,7]
[314087793,1707967841032,-500.0,0.00038356,7]
[314087794,1707967841042,-562.74855923,0.00038356,7]
[314087795,1707967841053,-500.0,0.00038356,7]
[314087796,1707967841062,-500.0,0.00038356,7]
[314087797,1707967841074,-500.0,0.00038356,7]
[314087798,1707967841083,-500.0,0.00038356,7]
[314087799,1707967841093,-500.0,0.00038356,7]
[314087800,1707967841103,-500.0,0.00038356,7]
[314087801,1707967841113,-500.0,0.00038356,7]
[314087802,1707967841123,-500.0,0.00038356,7]
[314087803,1707967841133,-500.0,0.00038356,7]
[314087804,1707967841142,-240.77468639,0.00038356,7]
[314087805,1707967841151,-564.41091151,0.00038356,7]
[314087806,1707967841161,-500.0,0.00038356,7]
[314087807,1707967841171,-500.0,0.00038356,7]
[314087808,1707967841183,-500.0,0.00038356,7]
[314087809,1707967841192,-421.66680631,0.00038356,7]
[314087810,1707967841202,-535.94198773,0.00038356,7]
[314087811,1707967841212,-500.0,0.00038356,7]
[314087812,1707967841222,-302.92920905,0.00038356,7]
[314087813,1707967841231,-500.0,0.00038356,7]
[314087814,1707967841241,-500.0,0.00038356,7]
[314087815,1707967841250,-171.20431991,0.00038356,7]
[314087816,1707967841261,-500.0,0.00038356,7]
[314087817,1707967841271,-629.97857191,0.00038356,7]
[314087818,1707967841280,-500.0,0.00038356,7]
[314087819,1707967841290,-500.0,0.00038356,7]
[314087820,1707967841299,-500.0,0.00038356,7]
[314087821,1707967841309,-500.0,0.00038356,7]
[314087822,1707967841319,-500.0,0.00038356,7]
[314087823,1707967841329,-500.0,0.00038356,7]
[314087824,1707967841339,-500.0,0.00038356,7]
[314087825,1707967841349,-500.0,0.00038356,7]
[314087826,1707967841358,-500.0,0.00038356,7]
[314087827,1707967841368,-500.0,0.00038356,7]
[314087828,1707967841377,-500.0,0.00038356,7]
[314087829,1707967841387,-867.04,0.00038356,7]
[314087830,1707967841396,-500.0,0.00038356,7]
[314087831,1707967841405,-500.0,0.00038356,7]
[314087832,1707967841415,-500.0,0.00038356,7]
[314087833,1707967841425,-553.95140339,0.00038356,7]
[314087834,1707967841435,-500.0,0.00038356,7]
[314087835,1707967841445,-500.0,0.00038356,7]
[314087836,1707967841454,-500.0,0.00038356,7]
[314087837,1707967841463,-500.0,0.00038356,7]
[314087838,1707967841473,-500.0,0.00038356,7]
[314087839,1707967841482,-500.0,0.00038356,7]
[314087840,1707967841491,-610.54024492,0.00038356,7]
[314087841,1707967841501,-500.0,0.00038356,7]
[314087842,1707967841510,-505.44226708,0.00038356,7]
[314087843,1707967841520,-500.0,0.00038356,7]
[314087844,1707967841530,-500.0,0.00038356,7]
[314087845,1707967841540,-500.0,0.00038356,7]
[314087846,1707967841549,-500.0,0.00038356,7]
[314087847,1707967841558,-570.34177993,0.00038356,7]
[314087848,1707967841567,-500.0,0.00038356,7]
[314087849,1707967841577,-500.0,0.00038356,7]
[314087850,1707967841587,-456.07784876,0.00038356,7]
[314087851,1707967841597,-500.0,0.00038356,7]
[314087852,1707967841607,-500.0,0.00038356,7]
[314087853,1707967841616,-517.03350251,0.00038356,7]
[314087854,1707967841626,-1000.0,0.00038356,7]
[314087855,1707967841635,-500.0,0.00038356,7]
[314087856,1707967841645,-500.0,0.00038356,7]
[314087857,1707967841654,-500.0,0.00038356,7]
[314087858,1707967841664,-536.78854356,0.00038356,7]
[314087859,1707967841675,-500.0,0.00038356,7]
[314087860,1707967841684,-500.0,0.00038356,7]
[314087861,1707967841693,-500.0,0.00038356,7]
[314087862,1707967841703,-500.0,0.00038356,7]
[314087863,1707967841712,-500.0,0.00038356,7]
[314087864,1707967841721,-500.0,0.00038356,7]
[314087865,1707967841731,-500.0,0.00038356,7]
[314087866,1707967841740,-500.0,0.00038356,7]
[314087867,1707967841750,-500.0,0.00038356,7]
[314087868,1707967841759,-500.0,0.00038356,7]
[314087869,1707967841768,-500.0,0.00038356,7]
[314087870,1707967841778,-500.0,0.00038356,7]
[314087871,1707967841787,-500.0,0.00038356,7]
[314087872,1707967841796,-569.77396092,0.00038356,7]
[314087873,1707967841805,-500.0,0.00038356,7]
[314087874,1707967841815,-500.0,0.00038356,7]
[314087875,1707967841824,-500.0,0.00038356,7]
[314087876,1707967841834,-503.44141687,0.00038356,7]
[314087877,1707967841843,-500.0,0.00038356,7]
[314087878,1707967841852,-500.0,0.00038356,7]
[314087879,1707967841861,-169.62996406,0.00038356,7]
[314087880,1707967841874,-500.0,0.00038356,7]
[314087881,1707967841886,-638.87023283,0.00038356,7]
[314087882,1707967841895,-500.0,0.00038356,7]
[314087883,1707967841904,-500.0,0.00038356,7]
[314087884,1707967841914,-500.0,0.00038356,7]
[314087885,1707967841924,-452.56240733,0.00038356,7]
[314087886,1707967841946,-47.43759267,0.00038356,7]
[314087887,1707967841956,-500.0,0.00038356,7]
[314087888,1707967841965,-500.0,0.00038356,7]
[314087889,1707967841974,-500.0,0.00038356,7]
[314087890,1707967841984,-500.0,0.00038356,7]
[314087891,1707967841993,-500.0,0.00038356,7]
[314087892,1707967842003,-67.31865923,0.00038356,7]
[314087893,1707967842015,-432.68134077,0.00038356,7]
[314087894,1707967842024,-500.0,0.00038356,7]
[314087895,1707967842033,-500.0,0.00038356,7]
[314087896,1707967842043,-500.0,0.00038356,7]
[314087897,1707967842054,-500.0,0.00038356,7]
[314087898,1707967842063,-334.01865923,0.00038356,7]
[314087899,1707967842081,-692.88901532,0.00038356,7]
[314087900,1707967842091,-500.0,0.00038356,7]
[314087901,1707967842100,-500.0,0.00038356,7]
[314087902,1707967842110,-463.89842865,0.00038356,7]
[314087903,1707967842122,-36.10157135,0.00038356,7]
[314087904,1707967842132,-500.0,0.00038356,7]
[314087905,1707967842141,-336.08217672,0.00038356,7]
[314087906,1707967842158,-163.91782328,0.00038356,7]
[314087907,1707967842167,-500.0,0.00038356,7]
[314087908,1707967842177,-500.0,0.00038356,7]
[314087909,1707967842187,-500.0,0.00038356,7]
[314087910,1707967842198,-478.6588589,0.00038356,7]
[314087911,1707967842207,-425.16387308,0.00038356,7]
[314087912,1707967842217,-500.0,0.00038356,7]
[314087913,1707967842226,-500.0,0.00038356,7]
[314087914,1707967842236,-500.0,0.00038356,7]
[314087916,1707967842246,-500.0,0.00038356,7]
[314087917,1707967842257,-500.0,0.00038356,7]
[314087918,1707967842266,-534.58801539,0.00038356,7]
[314087919,1707967842276,-500.0,0.00038356,7]
[314087920,1707967842285,-500.0,0.00038356,7]
[314087922,1707967842294,-500.0,0.00038356,7]
[314087924,1707967842304,-202.40575913,0.00038356,7]
[314087926,1707967842313,-517.20528942,0.00038356,7]
[314087928,1707967842322,-512.90130385,0.00038356,7]
[314087929,1707967842332,-500.0,0.00038356,7]
[314087930,1707967842341,-500.0,0.00038356,7]
[314087931,1707967842351,-500.0,0.00038356,7]
[314087932,1707967842359,-11.70486985,0.00038356,7]
[314087933,1707967842564,-488.29513015,0.00038356,7]
[314087934,1707967842573,-10000.0,0.00038356,7]
[314087935,1707967842583,-500.0,0.00038356,7]
[314087936,1707967842592,-500.0,0.00038356,7]
[314087937,1707967842601,-160.45108375,0.00038356,7]
[314087938,1707967842610,-500.0,0.00038356,7]
[314087939,1707967842619,-500.0,0.00038356,7]
[314087940,1707967842628,-500.0,0.00038356,7]
[314087941,1707967842637,-258.94001141,0.00038356,7]
[314087942,1707967842646,-350.50409274,0.00038356,7]
[314087943,1707967842656,-500.0,0.00038356,7]
[314087944,1707967842666,-500.0,0.00038356,7]
[314087945,1707967842678,-500.0,0.00038356,7]
[314087946,1707967842688,-500.0,0.00038356,7]
[314087947,1707967842697,-500.0,0.00038356,7]
[314087948,1707967842707,-10000.0,0.00038356,7]
[314087949,1707967842716,-500.0,0.00038356,7]
[314087950,1707967842726,-500.0,0.00038356,7]
[314087951,1707967842735,-500.0,0.00038356,7]
[314087952,1707967842745,-500.0,0.00038356,7]
[314087953,1707967842755,-500.0,0.00038356,7]
[314087954,1707967842764,-500.0,0.00038356,7]
[314087955,1707967842773,-500.0,0.00038356,7]
[314087956,1707967842783,-500.0,0.00038356,7]
[314087957,1707967842792,-1072.32,0.00038356,7]
[314087958,1707967842802,-500.0,0.00038356,7]
[314087959,1707967842811,-500.0,0.00038356,7]
[314087960,1707967842821,-500.0,0.00038356,7]
[314087961,1707967842830,-500.0,0.00038356,7]
[314087962,1707967842839,-500.0,0.00038356,7]
[314087963,1707967842848,-500.0,0.00038356,7]
[314087964,1707967842857,-500.0,0.00038356,7]
[314087965,1707967842867,-500.0,0.00038356,7]
[314087966,1707967842876,-500.0,0.00038356,7]
[314087967,1707967842885,-173.58594044,0.00038356,7]
[314087968,1707967842894,-500.0,0.00038356,7]
[314087969,1707967842904,-500.0,0.00038356,2]
[314087970,1707967842913,-500.0,0.00038356,7]
[314087971,1707967842925,-500.0,0.00038356,7]
[314087972,1707967842934,-500.0,0.00038356,7]
[314087973,1707967842943,-500.0,0.00038356,7]
[314087974,1707967842952,-500.0,0.00038356,7]
[314087975,1707967842961,-500.0,0.00038356,7]
[314087976,1707967842970,-508.01398748,0.00038356,7]
[314087977,1707967842979,-500.0,0.00038356,7]
[314087978,1707967842988,-500.0,0.00038356,7]
[314087979,1707967842997,-500.0,0.00038356,7]
[314087980,1707967843006,-1000.0,0.00038356,7]
[314087981,1707967843015,-500.0,0.00038356,7]
[314087982,1707967843024,-500.0,0.00038356,7]
[314087983,1707967843033,-615.20913584,0.00038356,7]
[314087984,1707967843042,-500.0,0.00038356,7]
[314087985,1707967843051,-500.76360616,0.00038356,7]
[314087986,1707967843060,-500.0,0.00038356,7]
[314087987,1707967843069,-500.0,0.00038356,7]
[314087988,1707967843078,-302.03593553,0.00038356,7]
[314087989,1707967843088,-500.0,0.00038356,7]
[314087990,1707967843097,-500.0,0.00038356,7]
[314087991,1707967843107,-500.0,0.00038356,7]
[314087992,1707967843116,-500.0,0.00038356,7]
[314087993,1707967843125,-547.54995438,0.00038356,7]
[314087994,1707967843134,-500.0,0.00038356,7]
[314087995,1707967843145,-500.88244932,0.00038356,2]
[314087996,1707967843154,-500.0,0.00038356,7]
[314087997,1707967843163,-500.0,0.00038356,7]
[314087998,1707967843174,-288.08170279,0.00038356,2]
[314087999,1707967843184,-570.63802259,0.00038356,7]
[314088000,1707967843193,-565.97245654,0.00038356,7]
[314088001,1707967843202,-500.60898423,0.00038356,2]
[314088002,1707967843212,-500.0,0.00038356,7]
[314088004,1707967843221,-500.0,0.00038356,7]
[314088005,1707967843231,-617.64918608,0.00038356,7]
[314088006,1707967843241,-500.0,0.00038356,7]
[314088007,1707967843251,-529.11740523,0.00038356,7]
[314088008,1707967843261,-500.0,0.00038356,7]
[314088009,1707967843270,-500.0,0.00038356,7]
[314088010,1707967843281,-500.0,0.00038356,7]
[314088012,1707967843290,-556.93023761,0.00038356,7]
[314088014,1707967843299,-524.43762167,0.00038356,7]
[314088016,1707967843309,-500.0,0.00038356,7]
[314088017,1707967843319,-500.0,0.00038356,7]
[314088018,1707967843328,-629.76027084,0.00038356,7]
[314088019,1707967843337,-500.0,0.00038356,7]
[314088020,1707967843347,-505.28983493,0.00038356,7]
[314088021,1707967843357,-500.0,0.00038356,2]
[314088022,1707967843366,-500.0,0.00038356,7]
[314088023,1707967843376,-500.0,0.00038356,7]
[314088024,1707967843386,-500.0,0.00038356,7]
[314088025,1707967843395,-500.0,0.00038356,7]
[314088026,1707967843405,-518.47606808,0.00038356,7]
[314088027,1707967843416,-542.07550084,0.00038356,7]
[314088028,1707967843426,-516.2007566,0.00038356,7]
[314088029,1707967843436,-261.45857083,0.00038356,7]
[314088030,1707967843445,-500.0,0.00038356,7]
[314088031,1707967843455,-500.0,0.00038356,7]
[314088032,1707967843464,-691.75,0.00038356,7]
[314088033,1707967843474,-500.0,0.00038356,7]
[314088034,1707967843483,-412.01477854,0.00038356,7]
[314088035,1707967843493,-328.97979401,0.00038356,7]
[314088036,1707967843502,-500.0,0.00038356,7]
[314088037,1707967843512,-507.15126356,0.00038356,7]
[314088038,1707967843521,-500.0,0.00038356,7]
[314088039,1707967843531,-500.0,0.00038356,7]
[314088040,1707967843540,-1254.0,0.00038377,2]
[314088041,1707967843550,-1232.0,0.00038377,2]
[314088042,1707967843559,-239.09,0.0003843,2]
[314088043,1707967843569,-2801.4,0.000385,2]
[314088044,1707967843578,-351.34863065,0.0003853,10]
[314088045,1707967843587,-500.0,0.0003863,7]
[314088046,1707967843597,-500.0,0.0003863,7]
[314088047,1707967843606,-511.29709236,0.0003863,7]
[314088048,1707967843615,-513.51652598,0.0003863,7]
[314088049,1707967843624,-510.41674453,0.0003863,7]
[314088050,1707967843634,-514.63876129,0.0003863,7]
[314088051,1707967843643,-500.0,0.0003863,7]
[314088052,1707967843653,-640.20520871,0.0003863,7]
[314088053,1707967843662,-500.0,0.0003863,7]
[314088054,1707967843674,-500.0,0.0003863,7]
[314088055,1707967843683,-512.44433726,0.0003863,7]
[314088057,1707967843693,-500.0,0.0003863,7]
[314088059,1707967843703,-454.32938116,0.0003863,7]
[314088061,1707967843712,-379.3916505,0.0003863,7]
[314088063,1707967843721,-500.0,0.0003863,7]
[314088065,1707967843731,-202.23798829,0.0003863,7]
[314088067,1707967843740,-608.66951798,0.0003863,7]
[314088069,1707967843752,-248.89062842,0.0003863,7]
[314088070,1707967843761,-500.0,0.0003863,7]
[314088071,1707967843771,-379.01704661,0.0003863,7]
[314088072,1707967843780,-526.50085314,0.0003863,7]